bitfinex-derivatives/quotes_ETHF0:USTF0_20241129
["timestamp","ask_amount","ask_price","bid_price","bid_amount"]
[1732892186918,3.2078,3635.0,3633.7,8.4554]
[1732892187222,1.67422,3635.3,3634.8,0.27496]
[1732892187415,1.3993,3635.3,3634.5,3.2078]
[1732892187608,0.27518871,3635.1,3634.9,3.2078]
[1732892187813,0.55012871,3635.1,3634.6,2.5631]
[1732892188014,0.27518871,3635.1,3634.6,2.5631]
[1732892188213,1.3993,3635.3,3634.8,0.27495]
[1732892188508,1.3993,3635.3,3634.9,3.2078]
[1732892188713,0.27493,3635.2,3634.9,3.2078]
[1732892188913,1.3993,3635.3,3634.6,2.5631]
[1732892189220,1.3993,3635.3,3634.9,0.27495]
[1732892189410,5.82428882,3635.7,3634.8,3.2078]
[1732892189721,0.27486,3636.1,3635.2,3.48272]
[1732892189915,5.23788882,3636.2,3635.2,3.2078]
[1732892190315,0.2749,3635.6,3635.2,3.48272]
[1732892190624,0.27518871,3636.0,3635.3,0.27491]
[1732892190912,0.27518871,3636.0,3634.8,0.27495]
[1732892190913,0.27493,3635.2,3634.8,0.27495]
[1732892191114,5.82428882,3635.8,3634.8,0.27495]
[1732892191115,5.82428882,3635.8,3634.8,0.59]
[1732892191415,5.82428882,3635.8,3635.4,0.27491]
[1732892191619,8.44568882,3636.2,3635.3,3.2078]
[1732892191918,8.44568882,3636.2,3635.4,2.6311]
[1732892192114,0.27489,3635.7,3635.4,1.2694]
[1732892192518,8.44568882,3636.2,3635.4,1.2694]
[1732892192711,0.27487,3635.9,3635.4,1.5443]
[1732892192918,2.21357793,3636.0,3635.4,1.2694]
[1732892193123,5.8292,3636.2,3635.7,3.2078]
[1732892193618,2.21357793,3636.7,3635.7,3.2078]
[1732892193822,2.21357793,3636.7,3636.1,3.2078]
[1732892194012,2.21357793,3636.7,3636.3,0.27484]
[1732892194213,2.21357793,3636.7,3636.2,1.3008]
[1732892194214,2.48839793,3636.7,3636.2,1.57565]
[1732892194411,2.48841793,3636.3,3636.1,3.2078]
[1732892194610,2.21357793,3636.3,3636.1,3.2078]
[1732892195314,2.21357793,3636.3,3635.6,4.5086]
[1732892195515,0.27487,3636.0,3635.6,5.3286]
[1732892195721,2.21357793,3636.3,3635.6,5.3286]
[1732892196109,0.27488,3635.8,3635.6,5.3286]
[1732892196309,0.27489,3635.7,3635.6,3.2078]
[1732892196513,2.21357793,3635.9,3634.7,3.2078]
[1732892196514,0.27494,3635.0,3634.7,3.2078]
[1732892196719,2.48850793,3635.2,3634.7,3.48276]
[1732892196915,0.27493,3635.1,3634.7,3.48276]
[1732892197120,0.27493,3635.1,3634.7,3.2078]
[1732892197419,0.27494,3635.1,3634.7,3.2078]
[1732892197620,2.21357793,3635.2,3634.7,3.2078]
[1732892197817,2.21357793,3635.2,3634.8,3.2078]
[1732892198018,0.27494,3635.0,3634.5,1.63547]
[1732892198319,0.27494,3635.0,3634.7,3.2078]
[1732892198514,4.70285053,3635.5,3634.7,3.2078]
[1732892198515,0.27491,3635.4,3634.7,3.2078]
[1732892198713,2.61638053,3635.1,3634.5,1.3605]
[1732892198917,0.27497,3634.6,3634.5,1.4005]
[1732892199116,2.61638053,3635.1,3634.5,0.04]
[1732892199512,0.27497,3634.7,3634.5,0.04]
[1732892199715,2.61638053,3635.1,3634.5,0.04]
[1732892200222,3.2078,3635.2,3634.5,0.04]
[1732892200418,4.01558053,3635.5,3634.6,3.2078]
[1732892200719,0.68719,3635.9,3635.0,3.2078]
[1732892200720,2.61638053,3635.9,3635.0,3.2078]
[1732892200915,0.27489,3635.7,3635.3,0.27491]
[1732892201116,0.27489,3635.7,3635.2,1.2896]
[1732892201117,3.2078,3635.7,3635.2,1.2896]
[1732892201315,2.89145796,3635.9,3635.2,1.2896]
[1732892201523,0.27491,3635.5,3635.2,1.2896]
[1732892201713,2.61638053,3635.9,3635.2,1.2896]
[1732892201918,0.27488,3635.9,3635.5,0.2749]
[1732892202415,4.5784,3636.1,3635.2,1.2896]
[1732892202722,0.27488,3635.8,3635.2,1.04]
[1732892202912,2.61638053,3635.9,3635.2,1.04]
[1732892203617,3.30357053,3635.9,3635.2,1.04]
[1732892203920,0.27488,3635.8,3635.2,1.04]
[1732892204117,0.27491,3635.5,3635.2,1.04]
[1732892204321,2.61638053,3635.9,3635.3,0.27491]
[1732892204322,0.27489,3635.7,3635.3,0.27491]
[1732892204616,0.27489,3635.8,3635.4,0.27491]
[1732892204822,2.61638053,3635.9,3635.4,1.04]
[1732892205012,0.2749,3635.5,3635.4,1.04]
[1732892205219,2.89128053,3635.5,3635.4,1.04]
[1732892205417,0.68733,3635.2,3634.1,3.2078]
[1732892205617,0.6873,3635.3,3634.3,0.27499]
[1732892205618,8.47188053,3635.1,3634.3,0.27499]
[1732892205821,8.47188053,3635.1,3634.3,3.80499]
[1732892206118,8.47188053,3635.1,3634.3,3.53]
[1732892206619,0.27498,3634.5,3634.3,3.53]
[1732892206815,0.68736,3635.0,3634.3,3.53]
[1732892207120,0.27499,3634.4,3634.3,3.53]
[1732892208918,6.51161053,3634.7,3633.7,1.3404]
[1732892209119,2.61638053,3633.8,3632.7,3.2078]
[1732892209325,2.61638053,3633.8,3632.3,1.64844]
[1732892209326,0.27507,3633.3,3632.3,1.64844]
[1732892209629,0.27506,3633.5,3633.0,3.48289]
[1732892209926,3.2078,3634.1,3633.5,0.27505]
[1732892210225,3.48281,3634.1,3633.1,1.3203]
[1732892210417,3.2078,3634.1,3633.2,1.3733]
[1732892210821,0.27505,3633.7,3633.2,1.64838]
[1732892211030,3.2078,3634.1,3633.2,1.3733]
[1732892211229,0.27505,3633.6,3633.2,1.3733]
[1732892211728,2.61638053,3633.8,3633.0,3.2078]
[1732892212021,0.27508,3633.2,3632.8,3.2078]
[1732892212223,0.27506,3633.4,3632.8,3.2078]
[1732892212423,0.27506,3633.4,3632.9,0.27509]
[1732892212622,2.6899,3633.5,3633.3,3.2078]
[1732892212817,3.2078,3634.6,3633.3,6.7578]
[1732892213024,2.61638053,3635.1,3634.2,3.2078]
[1732892213223,3.2078,3635.2,3634.2,3.2078]
[1732892213432,2.89131053,3635.1,3634.6,0.27496]
[1732892213727,2.96482,3635.3,3634.8,0.27495]
[1732892213931,2.6899,3635.3,3634.5,1.3182]
[1732892214130,2.6899,3635.3,3634.8,3.2078]
[1732892214527,2.61638053,3635.5,3634.8,3.2078]
[1732892214830,0.27492,3635.3,3634.8,44.28275]
[1732892215028,0.27493,3635.2,3634.8,44.0078]
[1732892215233,2.61638053,3635.5,3634.8,3.2078]
[1732892215427,2.61638053,3635.1,3634.4,3.2078]
[1732892215731,2.61638053,3635.1,3634.4,3.7578]
[1732892215927,2.777,3635.0,3634.4,3.7578]
[1732892216229,2.777,3635.0,3633.9,3.2078]
[1732892216423,2.777,3635.0,3634.0,1.3798]
[1732892216623,0.27497,3634.6,3634.1,0.275]
[1732892217025,0.27499,3634.4,3634.0,1.3798]
[1732892217220,3.2078,3634.7,3634.0,1.3798]
[1732892217423,0.27498,3634.5,3634.0,1.65481]
[1732892217620,2.777,3635.0,3634.0,1.3798]
[1732892217822,3.2078,3634.9,3634.0,1.3798]
[1732892218127,0.27498,3634.5,3634.0,1.65481]
[1732892218423,3.2078,3634.9,3634.0,1.3798]
[1732892218620,0.27499,3634.4,3634.0,1.3798]
[1732892219028,2.61638053,3634.7,3634.0,1.3798]
[1732892219224,2.61638053,3634.7,3633.9,3.2078]
[1732892219225,0.275,3634.2,3633.9,3.2078]
[1732892219426,2.61638053,3634.7,3633.9,4.7078]
[1732892220029,2.61638053,3634.7,3633.9,1.5]
[1732892220232,2.61638053,3634.7,3634.0,0.27501]
[1732892220527,2.61638053,3634.7,3634.0,2.73]
[1732892220724,0.275,3634.2,3634.0,2.73]
[1732892220923,0.275,3634.1,3634.0,2.73]
[1732892221126,1.391,3634.1,3633.5,3.2078]
[1732892221331,1.391,3634.1,3633.3,1.3816]
[1732892221332,0.27503,3633.8,3633.4,0.27506]
[1732892221531,1.2902,3634.0,3633.3,1.3816]
[1732892221725,1.2902,3634.0,3633.6,0.27504]
[1732892221931,3.2078,3634.5,3634.4,0.27498]
[1732892222229,3.2078,3634.5,3634.0,3.2078]
[1732892222433,3.2078,3634.5,3634.1,1.56351]
[1732892222434,3.48278,3634.5,3634.1,1.56351]
[1732892222628,3.2078,3634.9,3634.1,1.56351]
[1732892222830,0.27496,3634.7,3634.2,0.27499]
[1732892223131,0.27497,3634.6,3634.1,0.275]
[1732892223524,0.55016007,3634.8,3634.3,0.27499]
[1732892223828,0.55016007,3634.8,3633.4,3.2078]
[1732892223829,3.2078,3634.5,3633.4,3.2078]
[1732892224040,3.2078,3634.1,3633.4,6.1278]
[1732892224330,3.2078,3634.1,3633.0,3.2078]
[1732892224530,3.89533,3634.1,3633.1,0.27508]
[1732892224721,0.27504,3633.7,3633.2,0.27507]
[1732892224925,0.27504,3633.7,3633.2,1.93507]
[1732892225237,3.89533,3634.1,3633.2,1.66]
[1732892225531,0.27503,3633.8,3633.4,0.27506]
[1732892226033,0.27503,3633.8,3633.4,3.2078]
[1732892226222,0.27504,3633.7,3633.4,3.2078]
[1732892226627,0.27505,3633.6,3633.4,3.2078]
[1732892226824,0.27504,3633.7,3633.4,3.2078]
[1732892227128,3.2078,3634.1,3633.4,3.2078]
[1732892227625,2.7638,3634.4,3633.8,3.2078]
[1732892228231,3.03878,3634.4,3634.0,0.275]
[1732892228535,2.7638,3634.4,3633.9,1.288]
[1732892228729,2.7638,3634.4,3633.9,1.56301]
[1732892228928,2.7638,3634.4,3634.2,0.27499]
[1732892229131,2.7638,3634.4,3634.1,0.27499]
[1732892229433,2.7638,3634.4,3633.9,1.288]
[1732892229633,2.7638,3634.4,3634.1,0.275]
[1732892229833,2.7638,3634.4,3633.9,1.288]
[1732892230038,0.275,3634.2,3633.9,1.288]
[1732892230224,2.7638,3634.4,3633.9,1.288]
[1732892230432,2.7638,3634.4,3634.1,0.275]
[1732892230631,3.03878,3634.4,3633.9,1.288]
[1732892230830,2.7638,3634.4,3634.1,0.275]
[1732892231337,2.7638,3634.4,3633.9,1.288]
[1732892231538,3.03878,3634.4,3634.0,0.27501]
[1732892231740,3.03878,3634.4,3634.0,0.275]
[1732892231938,2.7638,3634.4,3634.0,0.44]
[1732892232333,2.7638,3634.4,3634.2,0.27499]
[1732892232735,2.7638,3634.4,3633.9,1.288]
[1732892233035,2.7638,3634.4,3633.9,0.78]
[1732892233236,3.03879,3634.4,3634.1,0.275]
[1732892233536,3.48300007,3634.8,3634.2,3.2078]
[1732892233735,3.48300007,3634.8,3634.2,3.48279]
[1732892233736,0.27498,3634.5,3634.2,3.48279]
[1732892233932,3.2078,3634.8,3634.2,3.2078]
[1732892234536,3.2078,3634.8,3634.6,0.27496]
[1732892235343,3.2078,3634.8,3634.3,1.3724]
[1732892235645,0.27496,3634.7,3634.4,0.27498]
[1732892235833,0.275,3634.2,3633.8,0.27502]
[1732892236039,2.61638053,3634.7,3633.8,0.83]
[1732892236040,0.27501,3634.1,3633.8,0.83]
[1732892236338,2.61638053,3634.7,3633.8,0.83]
[1732892236741,0.68743,3634.6,3633.8,0.83]
[1732892237136,2.61638053,3634.7,3633.8,0.83]
[1732892237339,3.2078,3634.8,3634.3,3.2078]
[1732892237540,1.3524,3634.9,3634.3,4.1878]
[1732892237753,10.0,3635.0,3634.7,3.2078]
[1732892238045,10.0,3635.0,3634.9,0.27495]
[1732892238343,7.538,3635.0,3634.9,0.27495]
[1732892238543,7.538,3635.0,3634.9,1.16495]
[1732892238741,5.4344,3635.0,3634.9,1.16495]
[1732892240940,5.70934,3635.0,3634.9,0.84495]
[1732892241142,5.4344,3635.0,3634.9,0.84495]
[1732892243542,5.70934,3635.0,3634.9,0.84495]
[1732892243751,5.70934,3635.0,3634.9,0.57]
[1732892245545,5.70934,3635.0,3634.7,3.2078]
[1732892245546,0.27496,3634.8,3634.7,3.2078]
[1732892246344,2.5985,3634.9,3634.1,3.2078]
[1732892246541,0.27497,3634.7,3634.5,0.27498]
[1732892246747,2.5985,3634.9,3634.1,3.2078]
[1732892246946,2.5985,3634.9,3634.1,5.3078]
[1732892247147,0.275,3634.3,3634.1,5.3078]
[1732892247342,0.27499,3634.4,3634.1,5.3078]
[1732892247543,1.3351,3634.3,3634.1,5.3078]
[1732892247845,1.6101,3634.3,3634.1,5.3078]
[1732892248052,1.3351,3634.3,3634.1,5.3078]
[1732892248952,1.6101,3634.3,3634.1,2.1]
[1732892249156,1.3351,3634.3,3634.1,2.1]
[1732892249546,0.275,3634.2,3634.1,2.1]
[1732892249743,1.3351,3634.3,3633.7,3.2078]
[1732892249744,0.27503,3633.8,3633.7,3.2078]
[1732892249949,4.59661053,3634.1,3633.1,3.2078]
[1732892250148,0.27503,3633.9,3633.1,3.69288]
[1732892250353,1.4021,3634.0,3633.1,3.4178]
[1732892250560,0.27506,3633.5,3633.1,3.69288]
[1732892250758,1.4021,3634.0,3633.1,3.69288]
[1732892251057,1.4021,3634.0,3633.1,3.4178]
[1732892251058,0.27508,3633.3,3633.1,3.4178]
[1732892251254,0.27508,3633.2,3633.1,3.4178]
[1732892251449,3.2078,3633.9,3633.1,3.4178]
[1732892251653,0.27507,3633.4,3633.1,3.4178]
[1732892252460,0.27508,3633.2,3633.1,0.21]
[1732892252758,3.2078,3633.9,3633.1,3.4178]
[1732892252759,0.27507,3633.3,3633.1,3.4178]
[1732892252957,5.82418053,3633.3,3632.0,3.2078]
[1732892253147,0.27514,3632.5,3632.1,0.27516]
[1732892253351,0.27514,3632.5,3632.1,1.40516]
[1732892253556,0.27512,3632.7,3632.2,0.27515]
[1732892253755,3.2078,3632.8,3632.2,1.82]
[1732892254059,0.27512,3632.7,3632.2,1.82]
[1732892254261,3.2078,3632.8,3632.2,1.82]
[1732892254452,0.27513,3632.6,3632.2,1.82]
[1732892254753,0.27515,3632.3,3632.2,1.82]
[1732892255058,0.27515,3632.3,3631.8,0.27518]
[1732892255059,3.48294,3632.4,3631.8,0.27518]
[1732892255249,1.3005,3632.3,3631.8,2.24]
[1732892255452,1.3005,3632.3,3631.9,0.27517]
[1732892255651,1.3005,3632.3,3632.0,0.27517]
[1732892255851,1.3005,3632.3,3632.0,0.52]
[1732892256465,1.3813,3632.8,3632.0,0.52]
[1732892256466,4.5891,3632.8,3632.0,3.7278]
[1732892256761,5.8896,3632.8,3632.0,3.7278]
[1732892257158,5.8896,3632.8,3632.4,0.27513]
[1732892257565,5.8896,3632.8,3632.4,0.27514]
[1732892257860,8.78109053,3632.8,3632.2,0.27515]
[1732892258065,8.78109053,3632.8,3632.3,0.27515]
[1732892258265,8.78109053,3632.8,3632.3,2.03515]
[1732892258565,8.50598053,3632.8,3632.3,1.76]
[1732892259064,8.78128363,3632.8,3632.3,1.76]
[1732892259266,1.3005,3632.8,3632.7,0.27512]
[1732892259453,9.24144626,3634.2,3632.7,0.27512]
[1732892259454,2.61638053,3633.6,3632.7,7.08]
[1732892259654,2.61638053,3634.0,3633.9,0.27503]
[1732892259858,1.4004,3634.1,3634.0,0.27502]
[1732892260054,1.4004,3634.1,3633.4,0.68765]
[1732892260055,3.87338053,3634.4,3633.6,0.68763]
[1732892260282,2.61638053,3634.4,3633.6,4.33]
[1732892260478,3.2078,3634.6,3634.3,0.27499]
[1732892260664,3.48278,3634.6,3634.3,1.51]
[1732892260863,3.48278,3634.6,3634.3,1.78499]
[1732892261066,3.48278,3634.6,3634.3,1.51]
[1732892261067,0.27499,3634.5,3634.3,1.51]
[1732892261266,2.61638053,3634.4,3634.3,1.58]
[1732892261466,2.61638053,3634.4,3634.3,1.855]
[1732892261659,2.61638053,3634.4,3634.3,0.78]
[1732892261860,2.61638053,3634.4,3634.2,0.275]
[1732892262165,2.61638053,3634.4,3633.7,3.89541]
[1732892262365,2.61638053,3634.4,3634.2,0.275]
[1732892263359,2.61638053,3634.4,3633.1,0.6877]
[1732892263566,2.61638053,3634.0,3633.1,1.26]
[1732892263871,2.89140053,3634.0,3633.6,0.27505]
[1732892264070,0.27503,3633.9,3633.6,0.54]
[1732892264565,3.2078,3633.8,3633.6,0.54]
[1732892265868,0.27505,3633.7,3633.6,0.54]
[1732892266071,0.27505,3633.7,3631.6,3.99237053]
[1732892266072,0.27506,3633.5,3632.6,0.68783]
[1732892266370,5.82418053,3633.4,3632.6,6.13563]
[1732892266574,5.82418053,3633.4,3633.3,0.27508]
[1732892267067,3.2078,3633.4,3633.3,0.27508]
[1732892267665,3.2078,3633.4,3632.7,1.3659]
[1732892267867,3.2078,3633.4,3633.0,0.2751]
[1732892268163,3.2078,3633.4,3633.0,3.8651]
[1732892268362,3.48287,3633.4,3633.0,3.8651]
[1732892268967,3.48287,3633.4,3633.0,3.59]
[1732892269164,3.2078,3633.4,3633.0,3.59]
[1732892269370,3.48287,3633.4,3633.0,3.8651]
[1732892269763,0.27508,3633.3,3633.0,3.59]
[1732892270270,5.82418053,3633.4,3633.0,3.59]
[1732892270475,0.27508,3633.3,3633.0,3.59]
[1732892271472,0.27509,3633.1,3633.0,3.59]
[1732892272475,0.27511,3632.9,3632.6,3.2078]
[1732892272770,5.82418053,3633.4,3632.6,2.68]
[1732892272771,2.61638053,3633.0,3632.6,2.68]
[1732892272971,0.27512,3632.7,3632.6,2.68]
[1732892273163,5.82418053,3633.0,3632.0,1.3822]
[1732892273472,1.3875,3632.9,3632.5,0.27513]
[1732892273775,2.89148053,3633.0,3632.5,0.27513]
[1732892273776,2.61638053,3633.0,3632.5,0.53]
[1732892273964,2.89148053,3633.0,3632.5,0.53]
[1732892274163,2.61638053,3633.0,3632.5,0.53]
[1732892274365,2.61638053,3633.0,3632.6,0.27513]
[1732892274571,2.61638053,3633.0,3632.1,3.2078]
[1732892274770,3.48285,3633.6,3632.7,0.68779]
[1732892274966,3.48285,3633.6,3632.8,3.22938]
[1732892274967,3.2078,3633.6,3632.8,3.22938]
[1732892275269,3.2078,3633.6,3632.8,11.2316]
[1732892275474,0.27507,3633.4,3633.0,0.27509]
[1732892275670,0.27507,3633.4,3633.0,1.14]
[1732892276177,0.27507,3633.4,3633.1,0.27509]
[1732892276368,4.4567,3633.6,3633.1,1.02]
[1732892276671,0.27508,3633.2,3633.1,1.02]
[1732892277479,2.61638053,3633.4,3633.1,1.02]
[1732892277672,4.4567,3633.6,3633.1,1.02]
[1732892277868,3.2078,3633.6,3633.5,0.27506]
[1732892278475,3.2078,3633.6,3633.2,1.2226]
[1732892278476,3.48286,3633.6,3633.3,0.27507]
[1732892278866,3.2078,3634.3,3633.5,3.48286]
[1732892279072,1.37,3634.4,3634.2,0.27501]
[1732892279275,1.64499,3634.4,3634.1,0.27501]
[1732892279463,1.64499,3634.4,3633.5,3.89544]
[1732892279464,1.37,3634.4,3633.5,3.89544]
[1732892279675,3.2078,3634.3,3633.5,8.17544]
[1732892279875,0.27501,3634.2,3633.9,0.27503]
[1732892280177,3.2078,3634.3,3633.5,3.89544]
[1732892280372,3.2078,3634.3,3634.2,0.27501]
[1732892280574,3.2078,3634.3,3634.0,0.27502]
[1732892280775,3.2078,3634.3,3633.6,0.68764]
[1732892280776,3.4828,3634.3,3634.1,0.27501]
[1732892280976,2.61638053,3634.6,3634.4,0.27499]
[1732892280977,2.89136053,3634.6,3634.4,0.27499]
[1732892281277,1.3251,3634.7,3634.5,0.27498]
[1732892281472,1.3251,3634.7,3634.1,2.5945]
[1732892281678,1.60007,3634.7,3634.5,0.27498]
[1732892281876,1.60007,3634.7,3634.2,0.27501]
[1732892281877,1.3251,3634.7,3634.2,0.27501]
[1732892282073,1.3251,3634.7,3634.5,0.27498]
[1732892282579,1.3251,3634.7,3634.1,2.5945]
[1732892282778,1.3251,3634.7,3634.5,0.27498]
[1732892283380,1.3251,3634.7,3634.1,2.5945]
[1732892283675,1.3251,3634.7,3634.1,5.3945]
[1732892284072,1.3251,3634.7,3634.5,0.27498]
[1732892284277,1.3251,3634.7,3634.4,0.27499]
[1732892284479,1.3251,3634.7,3634.4,0.84499]
[1732892284684,1.3251,3634.7,3634.4,0.57]
[1732892284974,2.61638053,3634.6,3634.4,0.57]
[1732892285181,3.48279,3634.5,3634.0,0.27502]
[1732892285377,0.27499,3634.4,3634.0,1.39502]
[1732892285580,0.27499,3634.4,3634.0,1.12]
[1732892285776,0.27499,3634.4,3634.0,1.39501]
[1732892285984,0.27499,3634.4,3634.0,1.39502]
[1732892286176,3.2078,3634.5,3634.0,1.12]
[1732892286378,0.27499,3634.4,3634.0,1.39502]
[1732892286580,0.275,3634.3,3634.0,1.12]
[1732892286875,5.42307906,3634.5,3634.0,1.12]
[1732892287072,2.21527906,3634.1,3633.5,2.6261]
[1732892287271,0.27502,3634.0,3633.7,0.27504]
[1732892287476,5.42307906,3634.1,3633.8,0.27503]
[1732892287672,1.2851,3634.4,3634.3,0.275]
[1732892287872,5.69805906,3634.5,3633.6,0.68764]
[1732892288085,5.69806906,3634.5,3634.1,0.27501]
[1732892288280,2.21527906,3634.5,3633.6,0.68764]
[1732892288482,1.3251,3634.7,3633.9,3.2078]
[1732892288680,0.275,3634.4,3634.0,0.27502]
[1732892288885,0.275,3634.4,3633.9,3.2078]
[1732892288886,2.21527906,3634.5,3633.9,3.2078]
[1732892289387,2.21527906,3634.5,3634.1,0.27501]
[1732892289388,2.49026906,3634.5,3634.1,0.27501]
[1732892289780,2.21527906,3634.5,3634.2,0.275]
[1732892289982,2.21527906,3634.5,3633.9,3.2078]
[1732892290182,6.70817906,3634.9,3633.9,5.8978]
[1732892290383,3.2078,3634.9,3634.8,0.27496]
[1732892290588,3.2078,3634.9,3634.7,0.27497]
[1732892290989,5.42307906,3634.9,3634.3,1.3012]
[1732892291190,5.42307906,3634.9,3634.7,0.27497]
[1732892291490,5.42307906,3634.9,3634.4,42.0792]
[1732892292181,5.42307906,3634.9,3634.8,0.27496]
[1732892292485,3.2078,3634.9,3634.8,0.27496]
[1732892292682,5.4344,3635.0,3634.8,0.47]
[1732892292882,5.4344,3635.0,3634.9,0.27495]
[1732892293085,5.4344,3635.0,3634.9,6.41495]
[1732892294989,5.70935,3635.0,3634.9,6.14]
[1732892295784,5.4344,3635.0,3634.9,6.41495]
[1732892297288,5.2944,3635.0,3634.9,6.41495]
[1732892299187,0.27498,3634.7,3634.6,0.27497]
[1732892299390,0.27498,3634.7,3634.6,0.62497]
[1732892299889,0.27498,3634.7,3634.6,0.35]
[1732892300098,7.50967906,3635.0,3634.4,1.2792]
[1732892300299,0.27497,3634.7,3634.4,2.0292]
[1732892300490,0.27498,3634.6,3634.4,2.30419]
[1732892300793,1.3152,3634.9,3634.4,0.75]
[1732892300992,1.3152,3634.9,3633.9,1.2773]
[1732892300993,0.27501,3634.2,3633.9,0.27502]
[1732892301192,3.2078,3634.3,3633.8,1.2233]
[1732892301388,3.2078,3634.3,3634.2,0.27501]
[1732892301594,3.2078,3635.5,3634.2,4.33532]
[1732892301890,3.2078,3635.5,3634.9,0.27495]
[1732892302092,0.27493,3635.3,3634.9,0.27495]
[1732892302291,2.21527906,3635.8,3634.9,0.27495]
[1732892302292,0.27492,3635.4,3634.9,0.27495]
[1732892302492,2.21527906,3635.8,3634.9,42.04495]
[1732892302688,0.68725,3635.7,3634.9,42.04495]
[1732892302895,0.27493,3635.3,3634.9,1.24495]
[1732892303195,0.27492,3635.4,3634.9,1.24495]
[1732892303492,0.68724,3635.7,3634.9,1.24495]
[1732892303700,2.21527906,3635.8,3634.9,1.24495]
[1732892303994,2.21527906,3635.8,3634.9,0.97]
[1732892303995,5.56935,3635.0,3634.9,0.97]
[1732892304986,5.2944,3635.0,3634.3,1.3531]
[1732892305192,5.2944,3635.0,3634.3,8.0931]
[1732892305193,5.56935,3635.0,3634.3,8.0931]
[1732892305387,5.2944,3635.0,3634.5,0.27498]
[1732892305592,5.2944,3635.0,3634.6,0.27498]
[1732892305593,0.27496,3634.9,3634.6,0.27498]
[1732892305791,1.2084,3634.9,3634.6,0.95]
[1732892305990,0.27497,3634.8,3634.6,0.95]
[1732892306194,1.2271,3634.8,3634.7,0.27497]
[1732892306788,11.21715626,3636.4,3634.6,2.21527906]
[1732892306789,3.2078,3635.8,3634.6,2.21527906]
[1732892306994,3.2078,3635.8,3635.6,0.2749]
[1732892307195,3.48269,3635.8,3635.4,0.27491]
[1732892307400,3.2078,3635.8,3635.5,0.27491]
[1732892307595,2.21527906,3636.2,3635.4,3.2078]
[1732892307596,3.2078,3636.2,3635.4,3.2078]
[1732892307796,0.27485,3636.3,3635.4,3.2078]
[1732892307797,0.27485,3636.3,3636.0,0.27487]
[1732892308194,4.91403521,3636.5,3636.0,0.27487]
[1732892308592,4.91403521,3636.5,3635.5,0.68728]
[1732892308992,0.27485,3636.3,3635.9,0.27488]
[1732892309193,4.91403521,3636.5,3635.4,3.2078]
[1732892309403,0.27484,3636.4,3636.0,0.27487]
[1732892310201,0.27485,3636.3,3635.9,0.27487]
[1732892310595,4.91403521,3636.5,3635.4,3.2078]
[1732892310797,0.27485,3636.3,3635.9,0.27487]
[1732892311107,0.27486,3636.2,3635.8,0.27488]
[1732892311302,2.4236,3636.5,3635.8,6.91]
[1732892311504,52.21527906,3637.0,3636.7,0.27482]
[1732892311703,52.49007906,3637.0,3636.6,0.27482]
[1732892311902,52.21527906,3637.0,3636.3,3.2078]
[1732892312102,52.21527906,3637.0,3636.6,0.27482]
[1732892312103,52.49007906,3637.0,3636.6,0.27482]
[1732892312403,3.2078,3636.8,3636.3,3.2078]
[1732892312600,3.48261,3636.8,3636.4,0.27484]
[1732892312806,3.48261,3636.8,3636.3,0.27485]
[1732892312807,0.27482,3636.7,3636.3,0.27485]
[1732892313003,0.27482,3636.7,3635.9,2.4072]
[1732892313004,3.2078,3636.8,3636.0,3.89499]
[1732892313200,3.2078,3636.8,3636.0,8.5478]
[1732892313402,50.0,3637.0,3636.0,13.5478]
[1732892313618,50.0,3637.0,3636.9,0.2748]
[1732892314402,50.0,3637.0,3636.9,3.4826]
[1732892315410,50.0,3637.0,3636.9,8.4826]
[1732892315706,47.52563586,3637.0,3636.9,10.1226]
[1732892316010,20.20828074,3637.0,3636.9,19.11995821]
[1732892316204,0.27501918,3639.3,3637.4,0.68691]
[1732892316404,2.7496,3638.8,3638.4,3.2078]
[1732892316803,3.02426,3638.8,3638.4,0.27468]
[1732892317006,3.2078,3639.1,3638.4,3.2078]
[1732892317207,2.4284,3639.6,3638.8,3.2078]
[1732892317402,2.7496,3639.2,3638.9,0.27465]
[1732892317604,2.7496,3639.2,3638.8,3.2078]
[1732892317810,2.7496,3639.2,3638.8,10.33246]
[1732892318105,3.02425,3638.9,3638.8,6.85]
[1732892318299,3.02425,3638.9,3638.8,2.4862]
[1732892318504,2.7496,3638.9,3637.8,3.2078]
[1732892318704,2.7496,3638.2,3637.9,0.27472]
[1732892318899,2.7496,3638.2,3637.9,4.95]
[1732892319107,0.68659,3639.2,3637.9,4.95]
[1732892319108,5.81949259,3639.2,3637.9,4.95]
[1732892319307,2.7496,3638.8,3638.3,0.27469]
[1732892319609,5.9574,3638.8,3638.3,6.4]
[1732892319812,6.23206,3638.8,3638.3,6.4]
[1732892320006,5.9574,3638.8,3638.3,6.4]
[1732892320207,3.02427,3638.7,3638.3,6.4]
[1732892320409,3.2078,3638.8,3638.3,6.4]
[1732892320612,7.01809259,3639.6,3638.4,3.2078]
[1732892320907,2.7496,3639.4,3639.0,0.27464]
[1732892321101,2.7496,3639.3,3638.9,0.27465]
[1732892321307,2.7496,3639.3,3638.9,7.87]
[1732892321508,4.4064,3639.6,3638.9,7.87]
[1732892321816,2.88626259,3640.0,3639.2,3.2078]
[1732892322002,2.7496,3639.8,3638.9,5.0]
[1732892322309,2.7496,3639.5,3639.0,0.27464]
[1732892322811,5.9574,3639.5,3638.8,3.2078]
[1732892323007,0.27466,3638.9,3638.8,6.19]